lending/lending_fUSD_20251125
["ID","MTS","AMOUNT","RATE_DAILY","PERIOD"]
[394885689,1764069046583,-151.0,0.00016758,2]
[394885690,1764069046592,-500.0,0.00016773,2]
[394885691,1764069046601,-500.0,0.00016773,2]
[394885692,1764069046610,-500.0,0.00016773,2]
[394885693,1764069046619,-500.0,0.00016773,2]
[394885694,1764069046628,-173.90669127,0.00016773,2]
[394885695,1764069046637,-607.46165568,0.00016773,2]
[394885696,1764069046646,-171.28775345,0.00016773,2]
[394885697,1764069046655,-500.0,0.00016773,2]
[394885698,1764069046664,-500.0,0.00016773,2]
[394885699,1764069046674,-504.164248,0.00016773,2]
[394885701,1764069046683,-500.0,0.00016773,2]
[394885703,1764069046692,-282.10535313,0.00016773,2]
[394885704,1764069046702,-500.0,0.00016773,2]
[394885705,1764069046711,-437.22818306,0.00016773,2]
[394885706,1764069046720,-294.3607141,0.00016773,2]
[394885707,1764069046730,-558.38062796,0.00016796,2]
[394885708,1764069046740,-4212.2977026,0.00016812,2]
[394885709,1764069046750,-2902.9049421,0.00016812,2]
[394885710,1764069046759,-7301.5800126,0.00016812,2]
[394885711,1764069046768,-9197.9266935,0.00016812,2]
[394885712,1764069046777,-247.3030138,0.00016813,2]
[394885713,1764069046786,-343.49523554,0.00016813,2]
[394885714,1764069046796,-1275.56912,0.00016813,2]
[394885715,1764069046805,-166.66,0.00016853,2]
[394885716,1764069046814,-500.0,0.00016911,2]
[394885717,1764069046823,-500.0,0.00016911,2]
[394885718,1764069046832,-352.01033527,0.00016911,2]
[394885719,1764069046841,-8848.5006253,0.00016912,2]
[394885720,1764069046850,-2710.3727953,0.00016912,2]
[394885721,1764069046860,-3264.2149035,0.00016912,2]
[394885722,1764069046869,-151.0,0.00016912,2]
[394885723,1764069046878,-500.0,0.00016912,2]
[394885724,1764069046887,-151.0,0.00016912,2]
[394885725,1764069046897,-151.0,0.00016912,2]
[394885726,1764069046906,-151.0,0.00016912,2]
[394885727,1764069046915,-2000.0,0.00016913,2]
[394885728,1764069046926,-2000.0,0.00016913,2]
[394885729,1764069046935,-2000.0,0.00016913,2]
[394885730,1764069046944,-2000.0,0.00016913,2]
[394885731,1764069046953,-2000.0,0.00016913,2]
[394885732,1764069046963,-921.092,0.00016913,2]
[394885733,1764069046972,-151.43891233,0.00016913,2]
[394885734,1764069046981,-200.0,0.00016913,2]
[394885735,1764069046990,-1000.0,0.00016913,2]
[394885736,1764069046999,-1000.0,0.00016913,2]
[394885737,1764069047008,-1000.0,0.00016913,2]
[394885738,1764069047017,-1000.0,0.00016913,2]
[394885739,1764069047027,-1000.0,0.00016913,2]
[394885740,1764069047036,-1000.0,0.00016913,2]
[394885741,1764069047046,-276.007,0.00016913,2]
[394885742,1764069047055,-1000.0,0.00016913,2]
[394885743,1764069047064,-1000.0,0.00016913,2]
[394885744,1764069047073,-1000.0,0.00016913,2]
[394885745,1764069047087,-1000.0,0.00016913,2]
[394885746,1764069047096,-1000.0,0.00016913,2]
[394885747,1764069047105,-1000.0,0.00016913,2]
[394885748,1764069047114,-1000.0,0.00016913,2]
[394885749,1764069047125,-1000.0,0.00016913,2]
[394885750,1764069047135,-151.0,0.00016913,2]
[394885751,1764069047144,-151.0,0.00016913,2]
[394885752,1764069047153,-151.0,0.00016913,2]
[394885753,1764069047164,-162.626251,0.00016913,2]
[394885754,1764069047172,-150.0,0.00016969,2]
[394885755,1764069047181,-500.0,0.00016969,2]
[394885756,1764069047191,-152.7582617,0.00016969,2]
[394885757,1764069047199,-150.0,0.00016969,2]
[394885758,1764069047208,-500.0,0.00016969,2]
[394885759,1764069047217,-151.89822632,0.00016969,2]
[394885760,1764069047226,-150.0,0.00016969,2]
[394885761,1764069047236,-150.0,0.00016969,2]
[394885762,1764069047245,-274.89253593,0.00016969,2]
[394885763,1764069047254,-150.0,0.00016969,2]
[394885764,1764069047264,-150.0,0.00016969,2]
[394885765,1764069047274,-150.0,0.00016969,2]
[394885766,1764069047283,-1636.0,0.00016969,2]
[394885767,1764069047293,-150.0,0.00016969,2]
[394885768,1764069047303,-277.23860218,0.00016969,2]
[394885769,1764069047312,-150.0,0.00016969,2]
[394885770,1764069047322,-150.0,0.00016969,2]
[394885771,1764069047331,-150.0,0.00016969,2]
[394885772,1764069047340,-150.0,0.00016969,2]
[394885773,1764069047349,-278.06322707,0.00016969,2]
[394885774,1764069047359,-1049.75,0.00016977,2]
[394885775,1764069047368,-500.0,0.00016999,2]
[394885776,1764069047377,-293.14702608,0.00016999,2]
[394885777,1764069047386,-359.21326879,0.00016999,2]
[394885778,1764069047395,-65119.37432599,0.00017,2]
[394885779,1764069047416,-3026.45540003,0.00017,2]
[394885780,1764069047428,-145234.88278111,0.00017,2]
[394885781,1764069047437,-2000.0,0.00017,2]
[394885782,1764069047446,-151.0,0.00017,2]
[394885783,1764069047455,-150.0,0.000171,2]
[394885784,1764069047464,-211.52660131,0.00017106,2]
[394885785,1764069047473,-512.85717472,0.00017106,2]
[394885786,1764069047482,-151.07592364,0.00017106,2]
[394885787,1764069047491,-500.0,0.00017106,2]
[394885788,1764069047500,-152.82038322,0.00017106,2]
[394885789,1764069047509,-169.74562333,0.00017106,2]
[394885790,1764069047519,-150.0,0.00017106,2]
[394885791,1764069047530,-150.0,0.00017106,2]
[394885792,1764069047539,-172.65775664,0.00017106,2]
[394885793,1764069047549,-1636.0,0.00017106,2]
[394885794,1764069047559,-285.72135942,0.00017106,2]
[394885795,1764069047568,-208.94803532,0.00017106,2]
[394885796,1764069047577,-209.47219175,0.00017106,2]
[394885797,1764069047586,-221.48236835,0.00017106,2]
[394885798,1764069047596,-510.9868427,0.00017243,2]
[394885799,1764069047774,-150.0,0.00017243,2]
[394885800,1764069047784,-152.75787537,0.00017243,2]
[394885801,1764069047793,-1636.0,0.00017243,2]
[394885802,1764069047802,-166.66,0.0001725,2]
[394885803,1764069047811,-1049.75,0.00017251,2]
[394885804,1764069047821,-1000.0,0.00017321,2]
[394885805,1764069047830,-1000.0,0.00017321,2]
[394885806,1764069047839,-500.0,0.00017321,2]
[394885807,1764069047849,-460.01851566,0.00017321,2]
[394885808,1764069047858,-1000.0,0.00017321,2]
[394885809,1764069047867,-873.50394795,0.00017321,2]
[394885810,1764069047877,-300.0,0.00017375,2]
[394885811,1764069047886,-1636.0,0.0001738,2]
[394885812,1764069047896,-1636.0,0.00017517,2]
[394885813,1764069047906,-1049.75,0.00017525,2]
[394885814,1764069047915,-195.0,0.0001757,2]
[394885815,1764069047924,-300.0,0.0001757,2]
[394885816,1764069047934,-1636.0,0.00017654,2]
[394885817,1764069047944,-1600.0,0.00017686,2]
[394885818,1764069047953,-9317.89912649,0.00017696,2]
[394885819,1764069047965,-400.0,0.00017696,2]
[394885997,1764069925544,1021.5676556,0.000108,2]
[394886009,1764069963710,1290.51336938,0.00011,2]
[394886011,1764070023172,7152.49575244,0.00015,2]
[394886015,1764070082879,7667.41755513,0.0001439,2]
[394886016,1764070085973,364.33952059,0.000135,2]
[394886017,1764070086130,305.51174283,0.000125,2]
[394886018,1764070092864,1248.74841898,0.0001,2]
[394886019,1764070092887,671.26046139,0.0001,2]
[394886026,1764070120327,306.94557132,0.000125,2]
[394886051,1764070231366,-150.0,0.0001581,2]
[394886052,1764070231377,-813.01,0.00015942,2]
[394886054,1764070231386,-151.0,0.00015997,2]
[394886056,1764070231396,-1200.0,0.00015999,2]
[394886058,1764070231406,-300.0,0.00015999,2]
[394886060,1764070231416,-14896.31991112,0.00016,4]
[394886062,1764070231429,-13738.8083,0.00016,4]
[394886063,1764070231475,-803.3053275,0.00016,4]
[394886064,1764070231488,-9721.14121057,0.00016,4]
[394886065,1764070231531,-287.32390379,0.00016,4]
[394886066,1764070231544,-3073.68680735,0.00016,4]
[394886067,1764070231589,-86740.97422609,0.00016,4]
[394886068,1764070231603,-17253.85355858,0.00016,4]
[394886069,1764070231615,-39728.18517361,0.00016,4]
[394886070,1764070231627,-413.55879027,0.00016,4]
[394886071,1764070231640,-295.99999997,0.00016,4]
[394886072,1764070231653,-14950.20525869,0.00016,4]
[394886073,1764070231666,-856.63891136,0.00016,4]
[394886074,1764070231678,-999.0,0.00016,4]
[394886075,1764070237526,-500.0,0.00015999,2]
[394886076,1764070237537,-201.09492299,0.00015999,2]
[394886077,1764070237548,-167.70525152,0.00015999,2]
[394886081,1764070237775,-332.29474848,0.00015999,2]
[394886083,1764070237786,-446.98688051,0.00015999,2]
[394886086,1764070237797,-195.97680528,0.00015999,2]
[394886087,1764070237807,-500.0,0.00015999,2]
[394886088,1764070237818,-20920.58083477,0.00016,4]
[394886089,1764070237831,-965.39130196,0.00016,4]
[394886090,1764070237844,-16562.5,0.00016,4]
[394886117,1764070239710,-5032.40730653,0.00016,4]
[394886118,1764070239726,-16182.81015374,0.00016,4]
[394886119,1764070239962,-875.2,0.00016,4]
[394886131,1764070245102,-57861.70918888,0.00016,4]
[394886132,1764070245113,-200.0,0.00016105,2]
[394886133,1764070245123,-3763.6034685,0.0001618,2]
[394886134,1764070245133,-255.53695245,0.000162,2]
[394886135,1764070245143,-150.0,0.000162,2]
[394886136,1764070245153,-245.77897441,0.000162,2]
[394886137,1764070245163,-150.0,0.000162,2]
[394886138,1764070245173,-5000.00302731,0.000162,5]
[394886139,1764070245183,-4389.67,0.00016438,2]
[394886140,1764070245193,-1852.42,0.00016481,2]
[394886141,1764070245203,-2751.0,0.00016481,2]
[394886142,1764070245213,-5888.90720016,0.00016503,2]
[394886143,1764070245222,-802.7525,0.00016513,2]
[394886144,1764070245232,-5140.46644893,0.00016573,2]
[394886145,1764070245241,-175.07353867,0.00016573,2]
[394886146,1764070245251,-151.0,0.000166,2]
[394886147,1764070245261,-163.82,0.00016603,2]
[394886148,1764070245271,-500.0,0.00016603,2]
[394886149,1764070245281,-721.12765535,0.00016603,2]
[394886151,1764070245291,-500.0,0.00016603,2]
[394886152,1764070245302,-500.0,0.00016603,2]
[394886153,1764070245313,-250.0,0.00016603,2]
[394886154,1764070245323,-500.0,0.00016603,2]
[394886155,1764070245332,-500.0,0.00016603,2]
[394886156,1764070245342,-250.0,0.00016603,2]
[394886157,1764070245352,-160.63282067,0.00016603,2]
[394886158,1764070245362,-500.0,0.00016603,2]
[394886159,1764070245372,-500.0,0.00016603,2]
[394886160,1764070245381,-250.0,0.00016603,2]
[394886161,1764070245391,-500.0,0.00016603,2]
[394886162,1764070245400,-500.0,0.00016603,2]
[394886163,1764070245410,-250.0,0.00016603,2]
[394886164,1764070245420,-500.0,0.00016603,2]
[394886165,1764070245429,-500.0,0.00016603,2]
[394886166,1764070245439,-250.0,0.00016603,2]
[394886167,1764070245449,-500.0,0.00016603,2]
[394886168,1764070245458,-250.0,0.00016603,2]
[394886169,1764070245468,-500.0,0.00016603,2]
[394886170,1764070245477,-500.0,0.00016603,2]
[394886171,1764070245487,-321.67225622,0.00016603,2]
[394886172,1764070245496,-500.0,0.00016603,2]
[394886173,1764070245508,-500.0,0.00016603,2]
[394886174,1764070245519,-170.72149722,0.00016603,2]
[394886175,1764070245529,-500.0,0.00016603,2]
[394886176,1764070245539,-500.0,0.00016603,2]
[394886177,1764070245551,-500.0,0.00016603,2]
[394886178,1764070245560,-500.0,0.00016603,2]
[394886179,1764070245570,-500.0,0.00016603,2]
[394886180,1764070245580,-250.0,0.00016603,2]
[394886181,1764070245591,-500.0,0.00016603,2]
[394886182,1764070245600,-500.0,0.00016603,2]
[394886183,1764070245610,-264.94161149,0.00016603,2]
[394886184,1764070245619,-500.0,0.00016603,2]
[394886185,1764070245632,-243.2085705,0.00016603,2]
[394886186,1764070245642,-500.0,0.00016603,2]
[394886187,1764070245651,-500.0,0.00016603,2]
[394886188,1764070245660,-500.0,0.00016603,2]
[394886189,1764070245670,-250.0,0.00016603,2]
[394886190,1764070245679,-500.0,0.00016603,2]
[394886191,1764070245690,-250.0,0.00016603,2]
[394886192,1764070245699,-500.0,0.00016603,2]
[394886193,1764070245709,-250.0,0.00016603,2]
[394886194,1764070245719,-500.0,0.00016603,2]
[394886195,1764070245728,-250.0,0.00016603,2]
[394886196,1764070245738,-250.0,0.00016603,2]
[394886197,1764070245748,-250.0,0.00016603,2]
[394886198,1764070245758,-250.0,0.00016603,2]
[394886199,1764070245767,-250.0,0.00016603,2]
[394886200,1764070245777,-500.0,0.00016603,2]
[394886201,1764070245786,-250.0,0.00016603,2]
[394886202,1764070245796,-500.0,0.00016603,2]
[394886203,1764070245805,-250.0,0.00016603,2]
[394886204,1764070245814,-288.21777436,0.00016603,2]
[394886205,1764070245824,-500.0,0.00016603,2]
[394886206,1764070245834,-500.0,0.00016603,2]
[394886207,1764070245843,-500.0,0.00016603,2]
[394886208,1764070245852,-500.0,0.00016603,2]
[394886209,1764070245862,-500.0,0.00016603,2]
[394886210,1764070245871,-500.0,0.00016603,2]
[394886211,1764070245880,-500.0,0.00016603,2]
[394886212,1764070245890,-218.73677664,0.00016603,2]
[394886213,1764070245899,-620.0,0.00016603,2]
[394886214,1764070245908,-151.0,0.0001661,2]
[394886215,1764070245918,-559.3010927,0.00016612,2]
[394886216,1764070245927,-500.0,0.00016673,2]
[394886217,1764070245936,-505.24523327,0.00016673,2]
[394886218,1764070245945,-500.0,0.00016673,2]
[394886219,1764070245955,-500.0,0.00016673,2]
[394886220,1764070245964,-601.44928815,0.00016753,2]
[394886221,1764070245973,-205.20291826,0.00016753,2]
[394886222,1764070245982,-3748.43398564,0.00016753,2]
[394886224,1764070245992,-84539.56,0.00016754,2]
[394886225,1764070246001,-4707.6701408,0.00016812,2]
[394886226,1764070246010,-1500.0,0.00017,2]
[394886227,1764070246023,-430606.75700561,0.00017,2]
[394886228,1764070246040,-4156.83662609,0.00017,2]
[394886229,1764070246051,-4903.91057,0.00017,2]
[394886230,1764070246062,-437.735,0.00017,2]
[394886232,1764070246073,-1881.78279995,0.00017,2]
[394886234,1764070372717,-166.66,0.00016051,2]
[394886235,1764070372745,-166.66,0.00016389,2]
[394886236,1764070372774,-1666.68,0.00016503,2]
[394886278,1764070707775,354.97,0.00013699,2]
[394886279,1764070858347,150.0,0.00015,20]
[394886297,1764071071306,150.0,0.00016434,120]
[394886298,1764071073872,150.0,0.00018905,20]
[394886500,1764071288180,270.84080679,0.0001881,20]
[394886593,1764071431606,-252.611657,0.00015879,2]
[394886594,1764071431616,-250.0,0.00015959,2]
[394886595,1764071431625,-150.0,0.000162,2]
[394886596,1764071431635,-255.53695245,0.000162,2]
[394886597,1764071431644,-245.77897441,0.000162,2]
[394886598,1764071431654,-150.0,0.000162,2]
[394886599,1764071431663,-150.0,0.000162,2]
[394886600,1764071431672,-1200.0,0.00016402,2]
[394886601,1764071431681,-300.0,0.00016402,2]
[394886602,1764071431690,-802.7525,0.00016403,2]
[394886603,1764071431699,-1666.68,0.00016403,2]
[394886604,1764071431708,-150.0,0.00016434,2]
[394886605,1764071431718,-239.04204737,0.00016466,2]
[394886606,1764071431727,-5888.90720016,0.00016466,2]
[394886607,1764071431736,-516.77,0.00016466,2]
[394886608,1764071431745,-999.0,0.00016488,3]
[394886609,1764071431755,-250.0,0.00016492,2]
[394886610,1764071431765,-1073.98,0.00016493,2]
[394886611,1764071431774,-250.0,0.00016493,2]
[394886613,1764071431783,-264.94161149,0.00016493,2]
[394886614,1764071431792,-721.12765535,0.00016493,2]
[394886615,1764071431801,-500.0,0.00016493,2]
[394886616,1764071431810,-250.0,0.00016493,2]
[394886617,1764071431820,-500.0,0.00016493,2]
[394886618,1764071431829,-250.0,0.00016493,2]
[394886619,1764071431838,-500.0,0.00016493,2]
[394886620,1764071431847,-250.0,0.00016493,2]
[394886621,1764071431858,-500.0,0.00016493,2]
[394886622,1764071431869,-250.0,0.00016493,2]
[394886624,1764071431880,-500.0,0.00016493,2]
[394886626,1764071431890,-250.0,0.00016493,2]
[394886627,1764071431899,-500.0,0.00016493,2]
[394886628,1764071431909,-250.0,0.00016493,2]
[394886629,1764071431919,-500.0,0.00016493,2]
[394886630,1764071431931,-250.0,0.00016493,2]
[394886631,1764071431940,-500.0,0.00016493,2]
[394886632,1764071431953,-250.0,0.00016493,2]
[394886634,1764071431964,-500.0,0.00016493,2]
[394886635,1764071431974,-250.0,0.00016493,2]
[394886637,1764071431983,-500.0,0.00016493,2]
[394886639,1764071431991,-500.0,0.00016493,2]
[394886640,1764071432000,-250.0,0.00016493,2]
[394886642,1764071432012,-243.2085705,0.00016493,2]
[394886644,1764071432022,-500.0,0.00016493,2]
[394886646,1764071432031,-244.02628622,0.00016493,2]
[394886648,1764071432043,-44.19148814,0.00016493,2]
[394886650,1764071432052,-620.0,0.00016493,2]
[394886651,1764071432061,-160.63282067,0.00016493,2]
[394886653,1764071432070,-174.17569119,0.00016493,2]
[394886655,1764071432081,-325.82430881,0.00016493,2]
[394886656,1764071432090,-500.0,0.00016493,2]
[394886658,1764071432099,-500.0,0.00016493,2]
[394886660,1764071432108,-500.0,0.00016493,2]
[394886661,1764071432118,-500.0,0.00016493,2]
[394886662,1764071432128,-500.0,0.00016493,2]
[394886663,1764071432137,-500.0,0.00016493,2]
[394886664,1764071432146,-170.72149722,0.00016493,2]
[394886665,1764071432157,-500.0,0.00016493,2]
[394886666,1764071432166,-186.2696876,0.00016493,2]
[394886667,1764071432181,-313.7303124,0.00016493,2]
[394886668,1764071432190,-500.0,0.00016493,2]
[394886669,1764071432199,-500.0,0.00016493,2]
[394886670,1764071432209,-452.13347993,0.00016493,2]
[394886671,1764071432221,-47.86652007,0.00016493,2]
[394886672,1764071432230,-500.0,0.00016493,2]
[394886673,1764071432239,-500.0,0.00016493,2]
[394886674,1764071432249,-500.0,0.00016493,2]
[394886675,1764071432258,-500.0,0.00016493,2]
[394886676,1764071432267,-500.0,0.00016493,2]
[394886677,1764071432276,-500.0,0.00016493,2]
[394886678,1764071432285,-500.0,0.00016493,2]
[394886679,1764071432295,-500.0,0.00016493,2]
[394886680,1764071432305,-500.0,0.00016493,2]
[394886681,1764071432314,-218.73677664,0.00016493,2]
[394886682,1764071432324,-500.0,0.00016493,2]
[394886683,1764071432337,-500.0,0.00016493,2]
[394886684,1764071432347,-500.0,0.00016493,2]
[394886685,1764071432357,-500.0,0.00016493,2]
[394886686,1764071432366,-500.0,0.00016493,2]
[394886687,1764071432376,-500.0,0.00016493,2]
[394886688,1764071432385,-250.0,0.00016493,2]
[394886689,1764071432395,-250.0,0.00016493,2]
[394886690,1764071432404,-250.0,0.00016493,2]
[394886691,1764071432414,-250.0,0.00016493,2]
[394886692,1764071432424,-250.0,0.00016493,2]
[394886693,1764071432433,-250.0,0.00016493,2]
[394886694,1764071432442,-321.67225622,0.00016493,2]
[394886695,1764071432452,-559.3010927,0.00016502,2]
[394886696,1764071432462,-1000.0,0.00016566,2]
[394886698,1764071432471,-500.0,0.00016573,2]
[394886699,1764071432481,-500.0,0.00016573,2]
[394886700,1764071432490,-500.0,0.00016573,2]
[394886701,1764071432500,-537.27144005,0.00016612,2]
[394886702,1764071432510,-166.66,0.00016726,2]
[394886703,1764071432520,-167.33,0.00016755,2]
[394886704,1764071432530,-1073.98,0.00016767,2]
[394886705,1764071432540,-1510.07,0.00016802,2]
[394886706,1764071432550,-17733.71621097,0.00016947,2]
[394886707,1764071432562,-544.8230644,0.00016947,2]
[394886708,1764071432574,-262.56871724,0.00016947,2]
[394886716,1764071437559,-13616.60122921,0.00016947,2]
[394886717,1764071437571,-4038.49465,0.00016947,2]
[394886719,1764071437613,-680.10667978,0.00016947,2]
[394886720,1764071437622,-1549.08172661,0.00016947,2]
[394886721,1764071437634,-1923.82131879,0.00016947,2]
[394886722,1764071437644,-4707.6701408,0.00016947,2]
[394886723,1764071437654,-3626.874123,0.00016947,2]
[394886724,1764071437664,-3564.25016951,0.00016947,2]
[394886725,1764071437679,-650.0,0.00016947,2]
[394886726,1764071437785,-5.61340055,0.00016947,2]
[394886748,1764071439861,-397.05425772,0.00016947,2]
[394886749,1764071439917,-1320.23179554,0.00016947,2]
[394886750,1764071439971,-2485.8482738,0.00016947,2]
[394886751,1764071440130,-6581.00918208,0.00016947,2]
[394886752,1764071440140,-162.5156905,0.00016947,2]
[394886753,1764071440149,-500.0,0.00016973,2]
[394886754,1764071440159,-500.0,0.00016973,2]
[394886755,1764071440169,-505.24523327,0.00016973,2]
[394886756,1764071440179,-47471.8485829,0.00017,2]
[394886757,1764071440188,-200.0,0.00017,2]
[394886758,1764071440198,-1062.97426,0.00017,2]
[394886759,1764071440208,-6362.07,0.00017008,2]
[394886760,1764071440218,-150.0,0.00017036,2]
[394886761,1764071440227,-1073.98,0.00017041,2]
[394886762,1764071440236,-166.66,0.00017064,2]
[394886763,1764071440245,-166.79,0.00017115,2]
[394886764,1764071440256,-508.28181366,0.00017121,2]
[394886765,1764071440265,-719.65976874,0.00017121,2]
[394886766,1764071440275,-1062.97427,0.0001724,2]
[394886767,1764071440284,-7976.73161884,0.00017296,2]
[394886768,1764071440293,-1073.98,0.00017315,2]
[394886769,1764071440303,-166.66,0.00017402,2]
[394886770,1764071440312,-195.0,0.00017467,2]
[394886771,1764071440321,-1000.0,0.00017521,2]
[394886772,1764071440525,-1073.98,0.00017589,2]
[394886773,1764071440535,-200.0,0.00017654,2]
[394886774,1764071440544,-150.0,0.00017654,2]
[394886775,1764071440554,-200.0,0.00017654,2]
[394886776,1764071440563,-200.0,0.00017654,2]
[394886777,1764071440572,-200.0,0.00017654,2]
[394886778,1764071440581,-150.0,0.00017654,2]
[394886779,1764071440591,-200.0,0.00017654,2]
[394886780,1764071440600,-286.0,0.00017654,2]
[394886781,1764071440609,-289.89618844,0.00017696,2]
[394886782,1764071440618,-166.66,0.0001774,2]
[394886783,1764071440627,-1062.97427,0.0001775,2]
[394886784,1764071440637,-250.0,0.0001782,2]
[394886785,1764071440646,-166.79,0.00017821,2]
[394886786,1764071440654,-1073.98,0.00017863,2]
[394886787,1764071440664,-24719.97493275,0.00017894,2]
[394886788,1764071440673,-10000.0,0.000179,2]
[394886789,1764071440682,-5000.0,0.000179,2]
[394886790,1764071440691,-200.0,0.000179,2]
[394886791,1764071440700,-1233.0,0.000179,2]
[394886792,1764071440712,-200.0,0.000179,2]
[394886793,1764071440721,-200.0,0.000179,2]
[394886794,1764071440730,-286.47280325,0.000179,2]
[394886795,1764071440739,-420.0,0.00017926,2]
[394886796,1764071440748,-397.81980603,0.0001799,2]
[394886797,1764071440757,-161.28,0.00017999,2]
[394886798,1764071440766,-216.68239479,0.00017999,5]
[394886799,1764071440775,-3506.0,0.00018,2]
[394886800,1764071440784,-5873.72409325,0.00018,2]
[394886801,1764071440793,-437.96551373,0.00018,2]
[394886802,1764071440802,-162.44314539,0.00018,2]
[394886803,1764071440811,-864643.15905956,0.00018,2]
[394886804,1764071440823,-743.7,0.00018,2]
[394886805,1764071440833,-1787.14437352,0.00018,2]
[394886818,1764071444196,-87610.0,0.00018,2]
[394886822,1764071445826,-934.40077117,0.00018,2]
[394887026,1764071898119,797.35,8.9e-05,2]
[394887027,1764071898316,797.35,9.369e-05,2]
[394887028,1764071898737,797.35,9.837e-05,2]
[394887029,1764071898941,797.35,0.00010306,2]
[394887030,1764071899138,797.35,0.00010774,2]
[394887031,1764071899335,797.35,0.00011242,2]
[394887032,1764071899527,797.35,0.00011711,2]
[394887033,1764071899738,797.35,0.00012179,2]
[394887034,1764071899983,797.35,0.00012648,2]
[394887035,1764071900187,797.35,0.00013116,2]
[394887036,1764071900396,797.35,0.00013585,2]
[394887037,1764071900799,797.35,0.00014053,2]
[394887038,1764071901000,431.81,0.00014522,2]
[394887039,1764071901023,365.54,0.00014522,2]
[394887093,1764072216606,-797.35,0.0001499,2]
[394887094,1764072216636,-797.35,0.00015458,2]
[394887095,1764072216666,-797.35,0.00015927,2]
[394887096,1764072216694,-797.35,0.00016395,2]
[394887097,1764072216723,-797.35,0.00016864,2]
[394887098,1764072216750,-335.35008298,0.00016899,2]
[394887099,1764072216778,-155.80983404,0.00016999,2]
[394887100,1764072216965,-1044.19016596,0.00016999,2]
[394887101,1764072216995,-563.0,0.00016999,2]
[394887102,1764072217024,-2000.0,0.00017,2]
[394887103,1764072217056,-250.0,0.00017,2]
[394887104,1764072217085,-150.0,0.00017261,2]
[394887105,1764072217114,-797.35,0.00017332,2]
[394887106,1764072217144,-90.92966808,0.000178,2]
[394887107,1764072217220,-209.07033192,0.000178,2]
[394887108,1764072217248,-797.35,0.00017801,2]
[394887109,1764072217275,-3704.88856959,0.00017822,2]
[394887110,1764072219506,-4859.54355107,0.00017873,2]
[394887111,1764072219623,-280.92289786,0.00017873,2]
[394887112,1764072219652,-164.56251466,0.00017873,2]
[394887113,1764072219682,-3809.02269478,0.00017873,2]
[394887114,1764072222576,-1490.9937854,0.00017873,2]
[394887115,1764072222606,-177.65160887,0.00017899,2]
[394887116,1764072222636,-1330.91,0.00017899,2]
[394887117,1764072222665,-161.782,0.00017899,2]
[394887118,1764072228831,-1975.04237777,0.000179,2]
[394887119,1764072228876,-10000.01,0.000179,2]
[394887238,1764072631868,-300.0,0.00017799,2]
[394887240,1764072631878,-1034.0,0.00017799,2]
[394887242,1764072631888,-528.93568053,0.000178,2]
[394887244,1764072631898,-3850.07815207,0.000178,2]
[394887254,1764072632027,-291.36469732,0.000178,2]
[394887255,1764072632083,-30113.63555061,0.000178,2]
[394887256,1764072632092,-1863.23,0.00017815,2]
[394887257,1764072632103,-1852.42,0.00017854,2]
[394887258,1764072632112,-4770.01483209,0.00017873,2]
[394887259,1764072632122,-164.56251466,0.00017877,2]
[394887260,1764072632132,-4626.41980401,0.000179,2]
[394887261,1764072632142,-245.54811708,0.000179,2]